[Event "Early-Titled-Tuesday-Blitz-October-17-2023"]
[Site "Chess.com"]
[Date "2023.10.17"]
[Round "6"]
[White "mishanick"]
[Black "vladislavkovalev"]
[Result "1-0"]
[WhiteElo "3020"]
[BlackElo "2869"]
[TimeControl "180+1"]
[EndTime "9:08:48 PDT"]
[Termination "mishanick won by resignation"]

1. d4 {[%clk 0:03:00.9]} 1... Nf6 {[%clk 0:03:00.5]} 2. c4 {[%clk 0:03:01.2]}
2... e6 {[%clk 0:03:00.9]} 3. Nc3 {[%clk 0:03:01.8]} 3... Bb4 {[%clk 0:03:00.7]}
4. e3 {[%clk 0:03:02.1]} 4... O-O {[%clk 0:02:58.5]} 5. Bd3 {[%clk 0:03:02.8]}
5... d5 {[%clk 0:02:56.6]} 6. a3 {[%clk 0:03:03.2]} 6... Bxc3+ {[%clk
0:02:56.1]} 7. bxc3 {[%clk 0:03:04.1]} 7... dxc4 {[%clk 0:02:55.4]} 8. Bxc4
{[%clk 0:03:05]} 8... c5 {[%clk 0:02:56.1]} 9. Ne2 {[%clk 0:03:05]} 9... Qc7
{[%clk 0:02:56.6]} 10. Qd3 {[%clk 0:03:03.6]} 10... Nc6 {[%clk 0:02:49.2]} 11.
e4 {[%clk 0:03:03.6]} 11... Rd8 {[%clk 0:02:43.4]} 12. Ba2 {[%clk 0:02:46]}
12... b6 {[%clk 0:01:40.7]} 13. O-O {[%clk 0:02:44.5]} 13... Bb7 {[%clk
0:01:38.6]} 14. f3 {[%clk 0:02:39.9]} 14... Rac8 {[%clk 0:01:33.9]} 15. Bg5
{[%clk 0:02:39.6]} 15... cxd4 {[%clk 0:01:11.8]} 16. cxd4 {[%clk 0:02:38.5]}
16... h6 {[%clk 0:01:03]} 17. Bxf6 {[%clk 0:02:35.2]} 17... gxf6 {[%clk
0:01:03.5]} 18. Qe3 {[%clk 0:02:35.6]} 18... Kg7 {[%clk 0:01:01]} 19. Kh1 {[%clk
0:02:28]} 19... Ba6 {[%clk 0:00:50.1]} 20. d5 {[%clk 0:02:12.4]} 20... Bxe2
{[%clk 0:00:46.6]} 21. Qxe2 {[%clk 0:02:12.2]} 21... Nd4 {[%clk 0:00:45.8]} 22.
Qf2 {[%clk 0:02:10.7]} 22... e5 {[%clk 0:00:36.7]} 23. f4 {[%clk 0:02:07.7]}
23... Nc2 {[%clk 0:00:17.3]} 24. Rac1 {[%clk 0:02:03.8]} 24... exf4 {[%clk
0:00:17.1]} 25. Bb1 {[%clk 0:02:01]} 25... Ne3 {[%clk 0:00:09.5]} 26. Rxc7
{[%clk 0:02:00.4]} 26... Rxc7 {[%clk 0:00:10.4]} 27. Qxf4 {[%clk 0:01:59.8]}
27... Nxf1 {[%clk 0:00:10.1]} 28. Qxc7 {[%clk 0:01:59.2]} 1-0

[Event "Early-Titled-Tuesday-Blitz-October-17-2023"]
[Site "Chess.com"]
[Date "2023.10.17"]
[Round "6"]
[White "WPWPWP-2015"]
[Black "stollenmonster"]
[Result "1-0"]
[WhiteElo "2569"]
[BlackElo "2796"]
[TimeControl "180+1"]
[EndTime "9:08:55 PDT"]
[Termination "WPWPWP-2015 won by resignation"]

1. e4 {[%clk 0:02:59]} 1... c5 {[%clk 0:02:59.9]} 2. Nf3 {[%clk 0:02:59.1]} 2...
Nf6 {[%clk 0:03:00.4]} 3. Nc3 {[%clk 0:02:59.1]} 3... d5 {[%clk 0:03:00.4]} 4.
exd5 {[%clk 0:02:59]} 4... Nxd5 {[%clk 0:03:01.3]} 5. Bc4 {[%clk 0:02:59.1]}
5... Nb6 {[%clk 0:03:00.9]} 6. Bb5+ {[%clk 0:02:58.6]} 6... Bd7 {[%clk
0:03:01.3]} 7. Be2 {[%clk 0:02:57.9]} 7... Nc6 {[%clk 0:03:01.6]} 8. O-O {[%clk
0:02:57.8]} 8... e5 {[%clk 0:03:00.8]} 9. Re1 {[%clk 0:02:57.4]} 9... f6 {[%clk
0:03:01.2]} 10. d3 {[%clk 0:02:56.9]} 10... Be7 {[%clk 0:03:01.3]} 11. a4 {[%clk
0:02:57.1]} 11... Be6 {[%clk 0:02:59.3]} 12. a5 {[%clk 0:02:56.3]} 12... Nd5
{[%clk 0:02:59.3]} 13. a6 {[%clk 0:02:55.6]} 13... b6 {[%clk 0:02:59.5]} 14.
Nxd5 {[%clk 0:02:48.6]} 14... Qxd5 {[%clk 0:03:00.4]} 15. c3 {[%clk 0:02:48.1]}
15... Rd8 {[%clk 0:02:58.9]} 16. Qa4 {[%clk 0:02:44]} 16... O-O {[%clk
0:02:55.4]} 17. Nd2 {[%clk 0:02:42.7]} 17... Qd7 {[%clk 0:02:52.7]} 18. Bf3
{[%clk 0:02:41.4]} 18... Bd5 {[%clk 0:02:43.2]} 19. Be4 {[%clk 0:02:38]} 19...
f5 {[%clk 0:02:33.8]} 20. Bxd5+ {[%clk 0:02:37.6]} 20... Qxd5 {[%clk 0:02:34.7]}
21. Nf1 {[%clk 0:02:29.1]} 21... Na5 {[%clk 0:02:24.7]} 22. d4 {[%clk
0:02:23.9]} 22... cxd4 {[%clk 0:02:18.7]} 23. cxd4 {[%clk 0:02:23.3]} 23... e4
{[%clk 0:02:18.2]} 24. b4 {[%clk 0:02:14.1]} 24... Nc4 {[%clk 0:02:07]} 25. Ne3
{[%clk 0:01:56.7]} 25... Nxe3 {[%clk 0:02:05.3]} 26. fxe3 {[%clk 0:01:53.9]}
26... f4 {[%clk 0:02:06.2]} 27. exf4 {[%clk 0:01:52.6]} 27... Bf6 {[%clk
0:01:51.2]} 28. Be3 {[%clk 0:01:51.2]} 28... Bxd4 {[%clk 0:01:51.7]} 29. Bxd4
{[%clk 0:01:48.5]} 29... Qxd4+ {[%clk 0:01:52.6]} 30. Kh1 {[%clk 0:01:48.5]}
30... Rxf4 {[%clk 0:01:33.8]} 31. Rad1 {[%clk 0:01:44.4]} 31... Rdf8 {[%clk
0:01:33.3]} 32. Qb3+ {[%clk 0:01:31.9]} 32... Kh8 {[%clk 0:01:30.5]} 33. g3
{[%clk 0:01:31.2]} 1-0

[Event "Early-Titled-Tuesday-Blitz-October-17-2023"]
[Site "Chess.com"]
[Date "2023.10.17"]
[Round "6"]
[White "GaiozNigalidze"]
[Black "Msb2"]
[Result "0-1"]
[WhiteElo "2708"]
[BlackElo "3058"]
[TimeControl "180+1"]
[EndTime "9:09:09 PDT"]
[Termination "Msb2 won by resignation"]

1. e4 {[%clk 0:03:00.9]} 1... e6 {[%clk 0:03:00.3]} 2. h4 {[%clk 0:03:00.3]}
2... d5 {[%clk 0:03:00.3]} 3. exd5 {[%clk 0:03:00.6]} 3... exd5 {[%clk
0:03:01.2]} 4. d3 {[%clk 0:03:00.8]} 4... Nf6 {[%clk 0:03:01.5]} 5. Bg5 {[%clk
0:03:00.2]} 5... Be7 {[%clk 0:03:01.7]} 6. Be2 {[%clk 0:03:00.2]} 6... h6 {[%clk
0:03:02.3]} 7. Bf4 {[%clk 0:02:59.4]} 7... O-O {[%clk 0:03:02.3]} 8. Nh3 {[%clk
0:02:58.8]} 8... Bd6 {[%clk 0:03:02.2]} 9. Qd2 {[%clk 0:02:56.3]} 9... Re8
{[%clk 0:02:58.2]} 10. Nc3 {[%clk 0:02:32.6]} 10... Nc6 {[%clk 0:02:38.3]} 11.
Nb5 {[%clk 0:02:03.4]} 11... Bxf4 {[%clk 0:02:26.7]} 12. Qxf4 {[%clk 0:01:57.9]}
12... Qe7 {[%clk 0:02:21.6]} 13. O-O-O {[%clk 0:01:09.9]} 13... Qxe2 {[%clk
0:02:19.8]} 14. Nxc7 {[%clk 0:01:06.1]} 14... Bxh3 {[%clk 0:02:18.9]} 15. Nxe8
{[%clk 0:01:00.6]} 15... Rxe8 {[%clk 0:02:16.4]} 16. Rxh3 {[%clk 0:01:00.5]}
16... d4 {[%clk 0:02:10.7]} 17. Rf3 {[%clk 0:00:31.4]} 17... Nb4 {[%clk
0:02:02.2]} 18. Qd2 {[%clk 0:00:28.1]} 18... Nxa2+ {[%clk 0:02:02.7]} 19. Kb1
{[%clk 0:00:28.4]} 19... Qxd2 {[%clk 0:02:03.6]} 20. Rxd2 {[%clk 0:00:28.7]}
20... Nb4 {[%clk 0:02:04.5]} 21. Rd1 {[%clk 0:00:28.4]} 21... Re2 {[%clk
0:02:03.4]} 22. c3 {[%clk 0:00:27]} 22... dxc3 {[%clk 0:02:04.3]} 23. bxc3
{[%clk 0:00:27.7]} 23... Nbd5 {[%clk 0:02:03.8]} 24. Rc1 {[%clk 0:00:27.7]}
24... a5 {[%clk 0:01:41.9]} 25. Rc2 {[%clk 0:00:28]} 25... Re1+ {[%clk
0:01:39.8]} 26. Ka2 {[%clk 0:00:27.9]} 26... b5 {[%clk 0:01:37.4]} 27. Rf5
{[%clk 0:00:17.4]} 27... b4 {[%clk 0:01:37.6]} 28. c4 {[%clk 0:00:16.4]} 28...
a4 {[%clk 0:01:38.3]} 0-1

[Event "Early-Titled-Tuesday-Blitz-October-17-2023"]
[Site "Chess.com"]
[Date "2023.10.17"]
[Round "6"]
[White "Fonsofan"]
[Black "Aash20"]
[Result "1-0"]
[WhiteElo "2680"]
[BlackElo "2542"]
[TimeControl "180+1"]
[EndTime "9:09:09 PDT"]
[Termination "Fonsofan won by resignation"]

1. Nf3 {[%clk 0:02:53.7]} 1... d5 {[%clk 0:02:59.5]} 2. c4 {[%clk 0:02:54.6]}
2... c6 {[%clk 0:02:59.2]} 3. e3 {[%clk 0:02:54.7]} 3... Nf6 {[%clk 0:02:59]} 4.
b3 {[%clk 0:02:55.3]} 4... g6 {[%clk 0:02:59.1]} 5. Bb2 {[%clk 0:02:55.3]} 5...
Bg7 {[%clk 0:02:59.8]} 6. d4 {[%clk 0:02:55.8]} 6... O-O {[%clk 0:02:59.9]} 7.
Nbd2 {[%clk 0:02:55.1]} 7... Bg4 {[%clk 0:03:00.1]} 8. Bd3 {[%clk 0:02:53.8]}
8... Bxf3 {[%clk 0:02:58.9]} 9. Nxf3 {[%clk 0:02:53.5]} 9... Ne4 {[%clk
0:02:58.4]} 10. O-O {[%clk 0:02:51.3]} 10... Nd7 {[%clk 0:02:57.1]} 11. b4
{[%clk 0:02:51.9]} 11... Ndf6 {[%clk 0:02:56.8]} 12. Qb3 {[%clk 0:02:48]} 12...
e6 {[%clk 0:02:56]} 13. Rfc1 {[%clk 0:02:48.1]} 13... Nd7 {[%clk 0:02:49.7]} 14.
a4 {[%clk 0:02:46.8]} 14... Ng5 {[%clk 0:02:49]} 15. Nd2 {[%clk 0:02:45.1]}
15... Nf6 {[%clk 0:02:47.9]} 16. b5 {[%clk 0:02:38.8]} 16... Nge4 {[%clk
0:02:43.8]} 17. Nf3 {[%clk 0:02:25.8]} 17... Ng4 {[%clk 0:02:41.8]} 18. Rc2
{[%clk 0:02:20.3]} 18... Rb8 {[%clk 0:02:20.2]} 19. Ba3 {[%clk 0:02:14.6]} 19...
Re8 {[%clk 0:02:18.3]} 20. h3 {[%clk 0:02:11.5]} 20... Ngf6 {[%clk 0:02:05.5]}
21. Rb1 {[%clk 0:01:54.7]} 21... dxc4 {[%clk 0:02:03.1]} 22. Bxc4 {[%clk
0:01:52.6]} 22... cxb5 {[%clk 0:02:02.5]} 23. Bxb5 {[%clk 0:01:51.7]} 23... Nd7
{[%clk 0:01:50.3]} 24. Rbc1 {[%clk 0:01:28.9]} 24... a6 {[%clk 0:01:40.4]} 25.
Bxd7 {[%clk 0:01:18.5]} 25... Qxd7 {[%clk 0:01:41.3]} 26. Rc7 {[%clk 0:01:18.5]}
26... Qd5 {[%clk 0:01:29.2]} 27. Qxd5 {[%clk 0:01:17.8]} 27... exd5 {[%clk
0:01:30.1]} 28. a5 {[%clk 0:01:18.5]} 28... Bf8 {[%clk 0:01:24.5]} 29. Bxf8
{[%clk 0:01:13.4]} 29... Rxf8 {[%clk 0:01:24.5]} 30. Ne5 {[%clk 0:01:13.3]}
30... Nd6 {[%clk 0:01:24]} 31. Nd7 {[%clk 0:01:09.6]} 31... Rfd8 {[%clk
0:01:19.1]} 32. Nxb8 {[%clk 0:01:04.5]} 32... Rxb8 {[%clk 0:01:19]} 33. Rd7
{[%clk 0:01:05.1]} 33... Nc4 {[%clk 0:01:18.4]} 34. Rxd5 {[%clk 0:01:05]} 34...
b5 {[%clk 0:01:17.5]} 35. axb6 {[%clk 0:01:04]} 35... Nxb6 {[%clk 0:01:18.1]}
36. Rb1 {[%clk 0:01:02.7]} 1-0

[Event "Early-Titled-Tuesday-Blitz-October-17-2023"]
[Site "Chess.com"]
[Date "2023.10.17"]
[Round "6"]
[White "wadsy27"]
[Black "DanyKopy"]
[Result "1-0"]
[WhiteElo "2659"]
[BlackElo "2532"]
[TimeControl "180+1"]
[EndTime "9:09:11 PDT"]
[Termination "wadsy27 won by resignation"]

1. Nf3 {[%clk 0:03:00.9]} 1... Nf6 {[%clk 0:02:59.6]} 2. g3 {[%clk 0:02:59.9]}
2... g6 {[%clk 0:02:59.5]} 3. Bg2 {[%clk 0:03:00.1]} 3... Bg7 {[%clk 0:03:00]}
4. O-O {[%clk 0:03:00.4]} 4... O-O {[%clk 0:03:00.3]} 5. c4 {[%clk 0:03:01]}
5... c6 {[%clk 0:02:58.8]} 6. b3 {[%clk 0:02:57.8]} 6... Ne4 {[%clk 0:02:57]} 7.
d4 {[%clk 0:02:58]} 7... d5 {[%clk 0:02:56.7]} 8. Bb2 {[%clk 0:02:58.6]} 8...
dxc4 {[%clk 0:02:56.7]} 9. bxc4 {[%clk 0:02:57.9]} 9... c5 {[%clk 0:02:57.1]}
10. Qc2 {[%clk 0:02:56.3]} 10... Bf5 {[%clk 0:02:53.8]} 11. g4 {[%clk
0:02:56.2]} 11... Ng3 {[%clk 0:02:35]} 12. gxf5 {[%clk 0:02:55.3]} 12... Nxf1
{[%clk 0:02:35.3]} 13. fxg6 {[%clk 0:02:51.3]} 13... hxg6 {[%clk 0:02:30.5]} 14.
Kxf1 {[%clk 0:02:49.4]} 14... cxd4 {[%clk 0:02:29.9]} 15. Nbd2 {[%clk
0:02:45.4]} 15... Nc6 {[%clk 0:02:29.6]} 16. h4 {[%clk 0:02:41.6]} 16... Qb6
{[%clk 0:02:16.8]} 17. Rb1 {[%clk 0:02:34.3]} 17... Rad8 {[%clk 0:01:51]} 18. h5
{[%clk 0:02:30.5]} 18... d3 {[%clk 0:01:29.3]} 19. exd3 {[%clk 0:02:29.3]} 19...
Nb4 {[%clk 0:01:26.2]} 20. Qd1 {[%clk 0:02:20.4]} 20... Nxd3 {[%clk 0:00:56.9]}
21. Bd4 {[%clk 0:02:19.9]} 21... Qd6 {[%clk 0:00:46.7]} 22. Bxg7 {[%clk
0:02:10.1]} 22... Kxg7 {[%clk 0:00:47.6]} 23. Qe2 {[%clk 0:02:04.2]} 23... b6
{[%clk 0:00:41.3]} 24. Ne4 {[%clk 0:01:57.6]} 24... Qe6 {[%clk 0:00:32.3]} 25.
Nfg5 {[%clk 0:01:44.7]} 25... Qxc4 {[%clk 0:00:28.4]} 26. hxg6 {[%clk
0:01:37.2]} 26... fxg6 {[%clk 0:00:27]} 27. Kg1 {[%clk 0:01:33.2]} 27... Qd4
{[%clk 0:00:17.2]} 28. Ne6+ {[%clk 0:01:30.6]} 1-0

[Event "Early-Titled-Tuesday-Blitz-October-17-2023"]
[Site "Chess.com"]
[Date "2023.10.17"]
[Round "6"]
[White "MdSharifHossain"]
[Black "crazy_m_attack"]
[Result "0-1"]
[WhiteElo "2204"]
[BlackElo "2441"]
[TimeControl "180+1"]
[EndTime "9:09:19 PDT"]
[Termination "crazy_m_attack won by resignation"]

1. e4 {[%clk 0:03:00]} 1... e5 {[%clk 0:02:59.6]} 2. Nf3 {[%clk 0:03:00.1]} 2...
Nc6 {[%clk 0:03:00.1]} 3. Bb5 {[%clk 0:03:00.6]} 3... a6 {[%clk 0:03:00.6]} 4.
Ba4 {[%clk 0:03:01.2]} 4... Nf6 {[%clk 0:03:01.2]} 5. O-O {[%clk 0:03:01.1]}
5... Be7 {[%clk 0:03:01.7]} 6. Re1 {[%clk 0:03:01.1]} 6... b5 {[%clk 0:03:02.3]}
7. Bb3 {[%clk 0:03:01.6]} 7... O-O {[%clk 0:03:03]} 8. h3 {[%clk 0:02:59.5]}
8... Bb7 {[%clk 0:03:01.6]} 9. d3 {[%clk 0:02:58.8]} 9... d6 {[%clk 0:03:01.2]}
10. c3 {[%clk 0:02:57.8]} 10... Na5 {[%clk 0:02:59.1]} 11. Bc2 {[%clk
0:02:57.8]} 11... c5 {[%clk 0:03:00]} 12. Nbd2 {[%clk 0:02:56.1]} 12... Nc6
{[%clk 0:02:56.6]} 13. Nf1 {[%clk 0:02:55.6]} 13... Re8 {[%clk 0:02:47]} 14. Ne3
{[%clk 0:02:54.9]} 14... g6 {[%clk 0:02:45.1]} 15. b3 {[%clk 0:02:54.1]} 15...
d5 {[%clk 0:02:43.1]} 16. Qe2 {[%clk 0:02:51.7]} 16... dxe4 {[%clk 0:02:37.3]}
17. dxe4 {[%clk 0:02:50.4]} 17... b4 {[%clk 0:02:33.4]} 18. Rd1 {[%clk
0:02:48.2]} 18... Qc7 {[%clk 0:02:32.2]} 19. Nd5 {[%clk 0:02:47.1]} 19... Nxd5
{[%clk 0:02:29.7]} 20. exd5 {[%clk 0:02:48]} 20... Na7 {[%clk 0:02:23]} 21. c4
{[%clk 0:02:47.9]} 21... Nc8 {[%clk 0:02:13.6]} 22. Bb2 {[%clk 0:02:42.6]} 22...
f6 {[%clk 0:02:13.3]} 23. Nd2 {[%clk 0:02:34.7]} 23... Nd6 {[%clk 0:02:11.3]}
24. f3 {[%clk 0:02:33.9]} 24... Bf8 {[%clk 0:02:08.2]} 25. Ne4 {[%clk
0:02:21.5]} 25... Bg7 {[%clk 0:01:54]} 26. Nxd6 {[%clk 0:02:19.4]} 26... Qxd6
{[%clk 0:01:48.2]} 27. Re1 {[%clk 0:02:12.6]} 27... a5 {[%clk 0:01:43.5]} 28.
Qf2 {[%clk 0:02:10.2]} 28... Re7 {[%clk 0:01:26]} 29. Re2 {[%clk 0:02:08.8]}
29... f5 {[%clk 0:01:09.2]} 30. Qg3 {[%clk 0:02:04.6]} 30... Rae8 {[%clk
0:01:06.6]} 31. Rae1 {[%clk 0:02:04]} 31... Ba6 {[%clk 0:00:32.2]} 32. a4 {[%clk
0:01:59.2]} 32... Bb7 {[%clk 0:00:28]} 33. Kh1 {[%clk 0:01:55.1]} 33... Bc8
{[%clk 0:00:27.4]} 34. Qxg6 {[%clk 0:01:45.3]} 34... hxg6 {[%clk 0:00:23.6]} 0-1

[Event "Early-Titled-Tuesday-Blitz-October-17-2023"]
[Site "Chess.com"]
[Date "2023.10.17"]
[Round "6"]
[White "ckgchess"]
[Black "Aygehovit1992"]
[Result "0-1"]
[WhiteElo "2882"]
[BlackElo "2711"]
[TimeControl "180+1"]
[EndTime "9:09:25 PDT"]
[Termination "Aygehovit1992 won by resignation"]

1. e4 {[%clk 0:03:00.9]} 1... c5 {[%clk 0:02:58.5]} 2. c3 {[%clk 0:03:01.1]}
2... d5 {[%clk 0:02:56.8]} 3. exd5 {[%clk 0:03:02]} 3... Qxd5 {[%clk 0:02:56.9]}
4. d4 {[%clk 0:03:02.4]} 4... Nf6 {[%clk 0:02:56.4]} 5. Nf3 {[%clk 0:03:02.6]}
5... e6 {[%clk 0:02:56.4]} 6. Na3 {[%clk 0:03:02.3]} 6... a6 {[%clk 0:02:56]} 7.
Nc4 {[%clk 0:02:59]} 7... Nbd7 {[%clk 0:02:54.1]} 8. Be2 {[%clk 0:02:59.4]} 8...
b5 {[%clk 0:02:47.5]} 9. Ne3 {[%clk 0:02:59.6]} 9... Qc6 {[%clk 0:02:41.1]} 10.
O-O {[%clk 0:02:59.6]} 10... Bb7 {[%clk 0:02:41.1]} 11. a4 {[%clk 0:02:59.4]}
11... Bd6 {[%clk 0:02:24]} 12. axb5 {[%clk 0:02:57.9]} 12... axb5 {[%clk
0:02:24]} 13. Rxa8+ {[%clk 0:02:58.8]} 13... Bxa8 {[%clk 0:02:24.4]} 14. dxc5
{[%clk 0:02:56.7]} 14... Bxc5 {[%clk 0:02:18]} 15. Qb3 {[%clk 0:02:35]} 15...
O-O {[%clk 0:02:18]} 16. Bxb5 {[%clk 0:02:34.7]} 16... Qc7 {[%clk 0:02:14.3]}
17. Be2 {[%clk 0:02:26]} 17... Ne4 {[%clk 0:01:54.9]} 18. Rd1 {[%clk 0:02:17.6]}
18... Ndf6 {[%clk 0:01:49.2]} 19. Qc2 {[%clk 0:01:52]} 19... Nxf2 {[%clk
0:01:47.2]} 20. Kxf2 {[%clk 0:01:21.2]} 20... Ng4+ {[%clk 0:01:47]} 21. Kf1
{[%clk 0:01:11.7]} 21... Bxe3 {[%clk 0:01:45.5]} 22. h3 {[%clk 0:01:11.4]} 22...
Qg3 {[%clk 0:01:38.7]} 23. Bd3 {[%clk 0:00:56.9]} 23... Bxf3 {[%clk 0:01:36.8]}
24. hxg4 {[%clk 0:00:55.7]} 24... Bxd1 {[%clk 0:01:35.1]} 25. Qxd1 {[%clk
0:00:56.1]} 25... Qf4+ {[%clk 0:01:33.6]} 26. Ke2 {[%clk 0:00:54.8]} 26... Bxc1
{[%clk 0:01:32.9]} 27. Qc2 {[%clk 0:00:51.7]} 27... g6 {[%clk 0:01:24.4]} 28. b4
{[%clk 0:00:48.4]} 28... Qxg4+ {[%clk 0:01:21.7]} 29. Kf1 {[%clk 0:00:45.8]}
29... Rd8 {[%clk 0:01:20.7]} 30. Be2 {[%clk 0:00:45.6]} 30... Qf4+ {[%clk
0:01:17.8]} 31. Bf3 {[%clk 0:00:46.2]} 31... Qe3 {[%clk 0:01:12.3]} 32. b5
{[%clk 0:00:44]} 32... Rd2 {[%clk 0:01:11.7]} 0-1

[Event "Early-Titled-Tuesday-Blitz-October-17-2023"]
[Site "Chess.com"]
[Date "2023.10.17"]
[Round "6"]
[White "Emp3rador"]
[Black "whiteglovethief"]
[Result "1-0"]
[WhiteElo "2556"]
[BlackElo "2661"]
[TimeControl "180+1"]
[EndTime "9:09:32 PDT"]
[Termination "Emp3rador won by resignation"]

1. e4 {[%clk 0:03:00.9]} 1... e6 {[%clk 0:03:00.2]} 2. d4 {[%clk 0:03:00.7]}
2... d5 {[%clk 0:03:00.8]} 3. exd5 {[%clk 0:03:01.4]} 3... exd5 {[%clk
0:03:00.6]} 4. Bd3 {[%clk 0:03:01.6]} 4... Bd6 {[%clk 0:03:00.9]} 5. Ne2 {[%clk
0:03:01]} 5... Ne7 {[%clk 0:03:01.1]} 6. Bf4 {[%clk 0:03:01.2]} 6... O-O {[%clk
0:03:00.8]} 7. O-O {[%clk 0:03:01.2]} 7... Bf5 {[%clk 0:03:00.3]} 8. h3 {[%clk
0:02:59.8]} 8... Nbc6 {[%clk 0:02:58.9]} 9. c3 {[%clk 0:02:59.3]} 9... Qd7
{[%clk 0:02:58.1]} 10. Qc2 {[%clk 0:02:57.6]} 10... Bg6 {[%clk 0:02:51.4]} 11.
Nd2 {[%clk 0:02:53.4]} 11... Rad8 {[%clk 0:02:49.9]} 12. Rfe1 {[%clk 0:02:53.4]}
12... Rfe8 {[%clk 0:02:49.9]} 13. Nf3 {[%clk 0:02:44.7]} 13... Nc8 {[%clk
0:02:45.7]} 14. Bg5 {[%clk 0:02:15.6]} 14... Be7 {[%clk 0:02:37.7]} 15. Nf4
{[%clk 0:02:04.9]} 15... Bxd3 {[%clk 0:02:22]} 16. Nxd3 {[%clk 0:02:02.9]} 16...
Bxg5 {[%clk 0:02:16.1]} 17. Nc5 {[%clk 0:01:47.1]} 17... Qd6 {[%clk 0:02:13.6]}
18. Nxg5 {[%clk 0:01:40.8]} 18... Qh6 {[%clk 0:02:07.5]} 19. Nf3 {[%clk
0:01:11.3]} 19... Nd6 {[%clk 0:02:05.6]} 20. Qb3 {[%clk 0:01:09.6]} 20... Qh5
{[%clk 0:01:40.2]} 21. Nxb7 {[%clk 0:00:55.8]} 21... Rxe1+ {[%clk 0:01:20.4]}
22. Rxe1 {[%clk 0:00:50.5]} 22... Rb8 {[%clk 0:01:13.8]} 23. Nxd6 {[%clk
0:00:46.8]} 23... f6 {[%clk 0:01:11.2]} 24. Qa4 {[%clk 0:00:20.3]} 1-0

[Event "Early-Titled-Tuesday-Blitz-October-17-2023"]
[Site "Chess.com"]
[Date "2023.10.17"]
[Round "6"]
[White "MidnightFox"]
[Black "Felix-Rose"]
[Result "1-0"]
[WhiteElo "2482"]
[BlackElo "2316"]
[TimeControl "180+1"]
[EndTime "9:09:32 PDT"]
[Termination "MidnightFox won on time"]

1. d4 {[%clk 0:03:00.9]} 1... Nf6 {[%clk 0:02:59.4]} 2. c4 {[%clk 0:03:01.4]}
2... e6 {[%clk 0:02:59.2]} 3. g3 {[%clk 0:03:01.5]} 3... d5 {[%clk 0:02:59]} 4.
Bg2 {[%clk 0:03:00.8]} 4... dxc4 {[%clk 0:02:58.6]} 5. Nf3 {[%clk 0:03:00.1]}
5... a6 {[%clk 0:02:57.8]} 6. O-O {[%clk 0:02:59.3]} 6... Nc6 {[%clk 0:02:57.3]}
7. e3 {[%clk 0:02:51.6]} 7... Bd7 {[%clk 0:02:54.4]} 8. Qe2 {[%clk 0:02:51.1]}
8... Bd6 {[%clk 0:02:47.8]} 9. Qxc4 {[%clk 0:02:48.1]} 9... Rb8 {[%clk
0:02:46.7]} 10. Rd1 {[%clk 0:02:46.9]} 10... O-O {[%clk 0:02:46.2]} 11. Nc3
{[%clk 0:02:42.4]} 11... Qe7 {[%clk 0:02:40.4]} 12. b3 {[%clk 0:02:37.3]} 12...
e5 {[%clk 0:02:32.3]} 13. Bb2 {[%clk 0:02:31.4]} 13... exd4 {[%clk 0:02:13.9]}
14. exd4 {[%clk 0:02:25.4]} 14... Ba3 {[%clk 0:01:59.6]} 15. Bxa3 {[%clk
0:02:21.8]} 15... Qxa3 {[%clk 0:01:57]} 16. d5 {[%clk 0:02:20.9]} 16... b5
{[%clk 0:01:47.3]} 17. Qf4 {[%clk 0:02:14.9]} 17... Ne7 {[%clk 0:00:58.7]} 18.
Qxc7 {[%clk 0:02:03.9]} 18... Rbc8 {[%clk 0:00:48.5]} 19. Qe5 {[%clk 0:02:02.5]}
19... Ng6 {[%clk 0:00:29.7]} 20. Qd4 {[%clk 0:01:59.6]} 20... Bg4 {[%clk
0:00:24.4]} 21. h3 {[%clk 0:01:39.8]} 21... Bxf3 {[%clk 0:00:22.8]} 22. Bxf3
{[%clk 0:01:40.7]} 22... Rfd8 {[%clk 0:00:15.4]} 23. Rac1 {[%clk 0:01:28.5]}
23... Qb2 {[%clk 0:00:09.3]} 24. Qd2 {[%clk 0:01:20.4]} 24... Qxd2 {[%clk
0:00:05.6]} 25. Rxd2 {[%clk 0:01:21.3]} 1-0

[Event "Early-Titled-Tuesday-Blitz-October-17-2023"]
[Site "Chess.com"]
[Date "2023.10.17"]
[Round "6"]
[White "Ishowmoves57"]
[Black "tarno17"]
[Result "1-0"]
[WhiteElo "2221"]
[BlackElo "2122"]
[TimeControl "180+1"]
[EndTime "9:09:34 PDT"]
[Termination "Ishowmoves57 won by resignation"]

1. e4 {[%clk 0:02:56]} 1... c5 {[%clk 0:02:56.3]} 2. Nf3 {[%clk 0:02:55.8]} 2...
e6 {[%clk 0:02:53.3]} 3. b3 {[%clk 0:02:54.7]} 3... d5 {[%clk 0:02:48.7]} 4.
exd5 {[%clk 0:02:55.6]} 4... Qxd5 {[%clk 0:02:46.1]} 5. Bc4 {[%clk 0:02:53.1]}
5... Qd6 {[%clk 0:02:44.6]} 6. O-O {[%clk 0:02:51.8]} 6... Nf6 {[%clk
0:02:41.9]} 7. Bb2 {[%clk 0:02:52]} 7... Nc6 {[%clk 0:02:40.8]} 8. d4 {[%clk
0:02:42.4]} 8... cxd4 {[%clk 0:02:27.1]} 9. Nxd4 {[%clk 0:02:43.3]} 9... Be7
{[%clk 0:02:25.6]} 10. Nxc6 {[%clk 0:02:42.1]} 10... bxc6 {[%clk 0:02:15.4]} 11.
Qxd6 {[%clk 0:02:38.6]} 11... Bxd6 {[%clk 0:02:14.4]} 12. Rd1 {[%clk 0:02:38]}
12... Ke7 {[%clk 0:02:14.6]} 13. Nd2 {[%clk 0:02:38.1]} 13... Bb7 {[%clk
0:02:12.8]} 14. Nf3 {[%clk 0:02:37.4]} 14... Rhg8 {[%clk 0:02:06.1]} 15. Rd2
{[%clk 0:02:22.8]} 15... Ne4 {[%clk 0:02:02.2]} 16. Re2 {[%clk 0:02:18.8]} 16...
Nf6 {[%clk 0:01:52.4]} 17. Rd1 {[%clk 0:02:14.2]} 17... Rad8 {[%clk 0:01:50]}
18. Rxd6 {[%clk 0:02:04.2]} 18... Rxd6 {[%clk 0:01:49.8]} 19. Ba3 {[%clk
0:02:04.7]} 19... Rd8 {[%clk 0:01:50.2]} 20. Kf1 {[%clk 0:01:49]} 20... Ke8
{[%clk 0:01:40.2]} 21. Bxd6 {[%clk 0:01:48.2]} 21... Rxd6 {[%clk 0:01:41.1]} 22.
Rd2 {[%clk 0:01:45.7]} 22... Ke7 {[%clk 0:01:37.4]} 23. Ke2 {[%clk 0:01:43.9]}
23... Rxd2+ {[%clk 0:01:27.3]} 24. Nxd2 {[%clk 0:01:43.3]} 24... c5 {[%clk
0:01:24.5]} 25. f3 {[%clk 0:01:43.1]} 25... Kd6 {[%clk 0:01:19.6]} 26. Ke3
{[%clk 0:01:41.8]} 26... a5 {[%clk 0:01:14.3]} 27. Bd3 {[%clk 0:01:36.1]} 27...
h6 {[%clk 0:01:12.7]} 28. Nc4+ {[%clk 0:01:36]} 28... Kd7 {[%clk 0:00:59.2]} 29.
Nxa5 {[%clk 0:01:34.7]} 29... Nd5+ {[%clk 0:00:59.9]} 30. Kd2 {[%clk 0:01:32.4]}
30... Ba8 {[%clk 0:00:59.2]} 31. Nc4 {[%clk 0:01:29.8]} 31... Nb4 {[%clk
0:00:57.2]} 32. Nb6+ {[%clk 0:01:28.5]} 32... Kc6 {[%clk 0:00:54.8]} 33. Nxa8
{[%clk 0:01:28.6]} 33... Kb7 {[%clk 0:00:55.4]} 34. Be4+ {[%clk 0:01:28.1]}
34... Nd5 {[%clk 0:00:55.4]} 35. c4 {[%clk 0:01:26.2]} 35... f5 {[%clk
0:00:51.1]} 36. cxd5 {[%clk 0:01:19.8]} 36... fxe4 {[%clk 0:00:50.9]} 37. dxe6
{[%clk 0:01:15.3]} 37... Kc6 {[%clk 0:00:44.8]} 38. fxe4 {[%clk 0:01:13.6]}
38... Kd6 {[%clk 0:00:43.9]} 39. Nb6 {[%clk 0:01:13]} 39... Kxe6 {[%clk
0:00:43.7]} 40. Nc4 {[%clk 0:01:13.1]} 40... g5 {[%clk 0:00:40.4]} 41. a4 {[%clk
0:01:13.1]} 1-0